bitfinex/quotes_ETHUSD_20250920
["timestamp","ask_amount","ask_price","bid_price","bid_amount"]
[1758390037905,0.002,4492.3,4492.2,2.46608076]
[1758390038799,0.002,4492.3,4492.2,0.24]
[1758390047433,0.002,4492.3,4492.2,11.81991627]
[1758390047585,0.002,4492.3,4492.2,11.81413906]
[1758390047792,0.002,4492.3,4492.2,12.48328678]
[1758390051785,0.002,4492.3,4492.2,13.6536113]
[1758390055726,0.002,4493.0,4492.8,0.792]
[1758390055891,0.002,4493.0,4492.7,6.01783301]
[1758390055892,0.002,4493.0,4492.9,15.83947376]
[1758390056088,0.002,4493.0,4492.9,15.83370467]
[1758390056398,0.002,4493.0,4492.9,16.15880228]
[1758390063927,0.002,4493.0,4492.9,6.34283154]
[1758390064226,0.002,4493.0,4492.9,10.66979799]
[1758390067424,0.002,4493.0,4492.9,6.10693154]
[1758390067728,0.002,4493.0,4492.9,5.22573393]
[1758390067729,0.1361,4493.0,4492.9,5.22573393]
[1758390067935,0.1361,4493.0,4492.9,6.706]
[1758390068135,0.1361,4493.0,4492.9,7.498]
[1758390068339,0.1361,4493.0,4492.9,9.72373393]
[1758390068540,0.1361,4493.0,4492.9,3.706]
[1758390068838,0.1361,4493.0,4492.8,3.706]
[1758390069026,0.1341,4492.9,4492.8,3.706]
[1758390072652,0.1341,4492.9,4492.8,5.93178347]
[1758390072825,0.1401,4493.0,4492.8,5.93178347]
[1758390073369,0.02782167,4492.9,4492.8,5.93178347]
[1758390075147,0.02782167,4492.9,4492.8,3.706]
[1758390077556,0.02782167,4492.9,4492.4,0.792]
[1758390077763,0.1341,4492.8,4492.5,3.705]
[1758390077926,0.1341,4492.7,4492.6,3.705]
[1758390078263,0.3868714,4492.7,4492.6,3.705]
[1758390078740,0.2527714,4492.7,4492.6,3.705]
[1758390078921,0.3868714,4492.7,4492.6,3.705]
[1758390079323,0.1341,4492.7,4492.6,3.705]
[1758390079522,0.1341,4492.9,4492.6,3.705]
[1758390079722,0.1341,4492.8,4492.6,3.705]
[1758390080469,0.02982105,4493.0,4492.5,2.22593167]
[1758390080631,0.02982105,4493.0,4492.6,3.705]
[1758390080962,0.26917219,4493.0,4492.6,5.93088013]
[1758390081267,0.02982105,4493.0,4492.6,3.9518]
[1758390081461,0.02982105,4493.0,4492.7,0.2468]
[1758390081659,0.02982105,4493.0,4492.6,3.705]
[1758390082171,0.02982105,4493.0,4492.6,3.9518]
[1758390084438,0.02982105,4493.0,4492.6,6.17767962]
[1758390084640,0.02982105,4493.0,4492.7,0.2468]
[1758390084839,0.25575675,4493.0,4492.7,0.2468]
[1758390085482,0.02982105,4493.0,4492.7,0.2468]
[1758390086146,0.02982105,4493.0,4492.6,3.705]
[1758390086772,0.02982105,4493.0,4492.6,3.9518]
[1758390086988,0.02982105,4493.0,4492.5,2.22592574]
[1758390086989,0.02982105,4493.0,4492.7,0.2468]
[1758390090586,0.02982105,4493.0,4492.5,3.705]
[1758390090891,0.02982105,4493.0,4492.8,0.2468]
[1758390091093,0.26468993,4493.0,4492.8,0.2468]
[1758390092183,2.49038033,4493.0,4492.8,0.2468]
[1758390092378,2.49038033,4493.0,4492.5,3.705]
[1758390092379,0.26468993,4493.0,4492.5,3.705]
[1758390092652,2.22573393,4492.9,4492.5,3.9518]
[1758390092853,0.02782229,4492.8,4492.5,3.9518]
[1758390093052,2.22769529,4493.0,4492.5,3.9518]
[1758390093053,0.02782167,4492.9,4492.5,3.9518]
[1758390093248,0.02782167,4492.9,4492.6,0.2468]
[1758390094203,0.02982105,4493.0,4492.6,0.2468]
[1758390094412,0.48724451,4493.0,4492.6,0.2468]
[1758390095812,2.71293375,4493.0,4492.6,0.2468]
[1758390097002,2.71293375,4493.0,4492.6,0.2478]
[1758390097867,2.71293375,4493.0,4492.6,0.001]
[1758390108345,0.1341,4492.9,4492.6,0.001]
[1758390108644,2.25360576,4492.8,4492.6,0.001]
[1758390108802,2.51054593,4492.7,4492.6,0.001]
[1758390109004,2.64464593,4492.7,4492.6,0.001]
[1758390109520,0.41881292,4492.7,4492.6,0.001]
[1758390110202,0.28471292,4492.7,4492.6,0.001]
[1758390110942,2.51054593,4492.7,4492.6,0.001]
[1758390111248,2.53836884,4492.7,4492.6,0.001]
[1758390111540,0.31253583,4492.7,4492.6,0.001]
[1758390116737,0.31253583,4492.7,4492.6,0.2432]
[1758390116938,0.02782291,4492.7,4492.6,0.2432]
[1758390120176,3.73282229,4492.8,4492.6,0.2432]
[1758390122386,3.73282229,4492.8,4492.6,0.001]
[1758390122585,2.22583301,4492.7,4492.6,0.001]
[1758390122784,2.22583301,4492.7,4491.9,0.001]
[1758390122785,0.16192291,4492.7,4491.7,5.049]
[1758390122944,3.53815542,4492.6,4491.7,7.27528767]
[1758390123148,3.73182415,4492.5,4491.7,7.27528767]
[1758390123459,3.73182415,4492.5,4491.8,2.22626765]
[1758390123983,3.73182415,4492.5,4491.9,2.22622521]
[1758390124157,0.44279079,4492.4,4491.9,2.22622521]
[1758390124361,0.02782539,4492.3,4491.8,2.2262633]
[1758390124741,0.02782539,4492.3,4491.8,2.4685633]
[1758390125188,0.02782539,4492.3,4491.9,2.22622037]
[1758390125390,0.02782539,4492.3,4491.9,2.46852037]
[1758390125560,0.02782539,4492.3,4492.0,0.2423]
[1758390126486,0.02782539,4492.3,4492.0,2.46847971]
[1758390126688,0.02782539,4492.3,4492.0,2.22617971]
[1758390126846,0.02782539,4492.3,4492.1,0.2423]
[1758390128385,0.66787544,4492.3,4492.1,0.2423]
[1758390132078,0.66787544,4492.3,4491.9,0.2423]
[1758390132275,0.66787544,4492.3,4492.0,0.2423]
[1758390134094,0.66787544,4492.3,4492.0,2.46847799]
[1758390134293,0.66787544,4492.3,4492.0,0.2423]
[1758390135095,0.66787544,4492.3,4492.0,2.46847663]
[1758390139410,0.66787544,4492.3,4492.0,0.2423]
[1758390139607,0.66928805,4492.2,4492.0,0.2423]
[1758390139774,0.02782662,4492.1,4492.0,0.2423]
[1758390140298,0.02782477,4492.4,4492.0,0.2423]
[1758390140497,0.59577194,4492.3,4492.0,0.2423]
[1758390140704,0.66928804,4492.1,4492.0,0.2423]
[1758390140891,0.66928804,4492.1,4492.0,2.46847987]
[1758390141211,0.66928804,4492.1,4492.0,2.22617987]
[1758390141613,0.66928804,4492.1,4491.9,7.16452947]
[1758390141906,0.66928804,4492.1,4491.9,7.39942947]
[1758390146735,0.66928804,4492.1,4491.9,5.17320801]
[1758390146947,0.66928804,4492.1,4491.9,7.39942865]
[1758390156750,0.66928804,4492.1,4491.9,5.17320801]
[1758390157135,0.66928804,4492.1,4491.9,7.39943732]
[1758390158446,0.66928804,4492.1,4491.9,5.17320801]
[1758390158648,0.66928804,4492.1,4491.9,3.703]
[1758390159256,0.66928804,4492.1,4491.8,5.92924109]
[1758390160153,0.66928804,4492.1,4491.8,3.703]
[1758390160365,0.66928804,4492.1,4491.8,5.92926785]
[1758390160530,0.66928804,4492.1,4491.9,2.22621906]
[1758390160736,0.66928804,4492.1,4491.9,2.46111906]
[1758390160935,0.66928804,4492.1,4492.0,0.2349]
[1758390161340,0.66928804,4492.1,4491.8,3.703]
[1758390161341,0.96159804,4492.1,4491.8,3.703]
[1758390161542,0.96159804,4492.1,4491.8,3.9379]
[1758390161758,0.02782724,4492.0,4491.8,3.9379]
[1758390162158,0.66928804,4492.1,4491.8,3.9379]
[1758390163250,0.66928804,4492.1,4491.8,3.703]
[1758390163451,0.66928804,4492.1,4491.9,0.2349]
[1758390170381,0.67128804,4492.1,4491.9,0.2349]
[1758390173143,0.67128804,4492.1,4491.7,9.43330801]
[1758390173352,0.67128804,4492.1,4491.7,9.66900801]
[1758390173650,0.67128804,4492.1,4491.8,0.2357]
[1758390181581,0.67128804,4492.1,4491.7,4.495]
[1758390181779,0.67128804,4492.1,4491.7,4.7307]
[1758390182202,1.18640685,4492.1,4491.7,0.001]
[1758390182388,2.38814635,4492.0,4491.7,0.001]
[1758390182594,2.47738873,4492.0,4491.7,0.001]
[1758390182811,0.1341,4491.9,4491.7,0.001]
[1758390183113,2.36033203,4491.9,4491.7,0.001]
[1758390183324,2.25410747,4491.8,4491.7,0.001]
[1758390183469,2.78268005,4491.8,4491.7,0.001]
[1758390183664,2.91678005,4491.8,4491.7,0.001]
[1758390183895,2.47745842,4491.8,4491.7,0.001]
[1758390184566,0.25117943,4491.8,4491.7,0.001]
[1758390185567,0.11707943,4491.8,4491.7,0.001]
[1758390188540,2.34335842,4491.8,4491.7,0.001]
[1758390188742,2.47745842,4491.8,4491.7,0.001]
[1758390188949,2.96150426,4491.8,4491.7,0.001]
[1758390189123,3.09560426,4491.8,4491.7,0.001]
[1758390194376,2.96150426,4491.8,4491.7,0.001]
[1758390194594,3.09560426,4491.8,4491.7,0.001]
[1758390194757,2.96150426,4491.8,4491.7,0.001]
[1758390195288,0.73522527,4491.8,4491.7,0.001]
[1758390195590,2.96150426,4491.8,4491.7,0.001]
[1758390196091,0.73522527,4491.8,4491.7,0.001]
[1758390197171,0.73522527,4491.8,4491.7,0.2305]
[1758390197788,0.73522527,4491.8,4491.7,0.001]
[1758390198397,4.43622527,4491.8,4491.7,0.001]
[1758390198695,4.40839679,4491.8,4491.7,0.001]
[1758390205398,4.41039679,4491.8,4491.7,0.001]
[1758390213231,6.63667578,4491.8,4491.7,0.001]
[1758390213622,4.41039679,4491.8,4491.7,0.001]
[1758390213950,6.63667578,4491.8,4491.7,0.001]
[1758390214122,4.41039679,4491.8,4491.7,0.001]
[1758390215519,6.63667578,4491.8,4491.7,0.001]
[1758390218371,4.41039679,4491.8,4491.7,0.001]
[1758390220554,6.63667578,4491.8,4491.7,0.001]
[1758390220755,4.41039679,4491.8,4491.7,0.001]
[1758390223236,4.41039679,4491.8,4491.7,0.2305]
[1758390225266,0.09125095,4491.8,4491.7,0.2377]
[1758390225430,3.79125095,4491.8,4491.7,0.2377]
[1758390225869,0.09125095,4491.8,4491.7,0.2377]
[1758390226072,3.702,4491.8,4491.7,0.2377]
[1758390226974,0.002,4491.8,4491.7,0.2377]
[1758390235030,0.002,4491.8,4491.7,0.001]
[1758390241145,2.22827899,4491.8,4491.7,0.001]
[1758390242138,0.002,4491.8,4491.7,0.001]
[1758390243144,2.22827899,4491.8,4491.7,0.001]
[1758390243350,0.002,4491.8,4491.7,0.001]
[1758390243547,2.22827899,4491.8,4491.7,0.001]
[1758390244053,3.20313776,4491.8,4491.7,0.001]
[1758390244251,3.1582927,4491.8,4491.7,0.001]
[1758390244545,6.8582927,4491.8,4491.7,0.001]
[1758390246052,4.63201371,4491.8,4491.7,0.001]
[1758390246350,3.79125494,4491.8,4491.7,0.001]
[1758390246724,3.81908342,4491.8,4491.7,0.001]
[1758390247514,3.81908342,4491.8,4491.7,0.2369]
[1758390248055,3.79125494,4491.8,4491.7,0.2369]
[1758390248226,0.09125494,4491.8,4491.7,0.2369]
[1758390248431,3.79025494,4491.8,4491.7,0.2369]
[1758390250321,0.09125494,4491.8,4491.7,0.2369]
[1758390264826,0.09125494,4491.8,4491.7,0.2508]
[1758390266834,0.002,4491.8,4491.7,0.2508]
[1758390270069,0.002,4491.8,4491.7,1.0428]
[1758390270349,0.002,4491.8,4491.7,4.38146561]
[1758390271459,0.002,4491.8,4491.7,8.08046561]
[1758390274231,0.002,4491.8,4491.7,8.16969884]
[1758390291023,0.002,4491.8,4491.7,1.99457028]
[1758390291229,0.002,4491.8,4491.7,12.8583141]
[1758390293126,0.1361,4491.8,4491.7,5.73341526]
[1758390293326,0.1361,4491.8,4491.7,9.43041526]
[1758390293622,0.002,4491.8,4491.7,9.43041526]
[1758390293828,0.002,4491.8,4491.7,11.65674382]
[1758390297237,0.002,4491.8,4491.7,9.43041526]
[1758390297451,0.002,4491.8,4491.7,11.65674382]
[1758390297909,0.002,4491.8,4491.7,6.71632856]
[1758390298944,0.1361,4491.8,4491.7,6.71632856]
[1758390299545,0.002,4491.8,4491.7,6.71632856]
[1758390300254,0.1361,4491.8,4491.7,4.49]
[1758390300419,0.1361,4491.8,4491.7,0.793]
[1758390300615,0.1361,4491.8,4491.7,4.49]
[1758390302325,0.002,4491.8,4491.7,0.793]
[1758390302529,0.1361,4491.8,4491.7,0.001]
[1758390304138,0.1361,4491.8,4491.7,2.22732856]
[1758390304139,0.002,4491.8,4491.7,2.22732856]
[1758390304449,0.002,4491.8,4491.7,2.45772856]
[1758390305363,0.002,4491.8,4491.7,2.22732856]
[1758390305517,0.002,4491.8,4491.7,5.92432856]
[1758390307559,0.002,4491.8,4491.7,3.698]
[1758390307741,0.1361,4491.8,4491.7,0.001]
[1758390308445,0.4422399,4491.8,4491.7,0.001]
[1758390309720,0.53149045,4491.8,4491.7,0.001]
[1758390313043,0.22535055,4491.8,4491.7,0.001]
[1758390316274,2.45162954,4491.8,4491.7,0.001]
[1758390316470,2.47945802,4491.8,4491.7,0.001]
[1758390318966,0.22535055,4491.8,4491.7,0.001]
[1758390319532,0.09125055,4491.8,4491.7,0.001]
[1758390319771,0.56200562,4491.8,4491.7,0.001]
[1758390320483,2.78828461,4491.8,4491.7,0.001]
[1758390320683,2.92238461,4491.8,4491.7,0.001]
[1758390326103,6.61938461,4491.8,4491.7,0.001]
[1758390327712,6.48528461,4491.8,4491.7,0.001]
[1758390328088,6.82632792,4491.8,4491.7,0.001]
[1758390328282,7.12229721,4491.8,4491.7,0.001]
[1758390333017,10.12229721,4491.8,4491.7,0.001]
[1758390335689,10.12201639,4491.8,4491.7,0.001]
[1758390339920,10.12195323,4491.8,4491.7,0.001]
[1758390343216,17.27895323,4491.8,4491.7,0.001]
[1758390344402,17.55737529,4491.8,4491.7,0.001]
[1758390346314,17.14485323,4491.8,4491.7,0.001]
[1758390349030,13.44785323,4491.8,4491.7,0.001]
[1758390349232,16.84888394,4491.8,4491.7,0.2357]
[1758390349919,16.84888394,4491.8,4491.7,0.001]
[1758390350122,17.14485323,4491.8,4491.7,0.001]
[1758390350507,17.14485323,4491.8,4491.7,0.2357]
[1758390359174,17.14485323,4491.8,4491.7,0.001]
[1758390362360,17.14485323,4491.8,4491.7,0.2357]
[1758390363140,17.14485323,4491.8,4491.7,0.001]
[1758390365789,19.07085323,4491.8,4491.7,0.001]
[1758390367252,19.07085323,4491.8,4491.7,0.2306]
[1758390367456,15.37385323,4491.8,4491.7,0.2306]
[1758390367657,19.07085323,4491.8,4491.7,0.2306]
[1758390368192,19.07085323,4491.8,4491.7,0.001]
[1758390370903,15.37385323,4491.8,4491.7,0.001]
[1758390371199,19.07085323,4491.8,4491.7,0.001]
[1758390384019,19.07164797,4491.8,4491.7,0.001]
[1758390402378,11.91464797,4491.8,4491.7,0.001]
[1758390403976,12.04874797,4491.8,4491.7,0.001]
[1758390404563,11.91464797,4491.8,4491.7,0.001]
[1758390404764,12.04874797,4491.8,4491.7,0.001]
[1758390406668,11.91464797,4491.8,4491.7,0.001]
[1758390408713,11.91464797,4491.8,4491.7,0.2281]
[1758390409468,11.91464797,4491.8,4491.7,0.001]
[1758390409871,11.91464797,4491.8,4491.7,0.2281]
[1758390410068,11.91464797,4491.8,4491.7,0.001]
[1758390413680,11.91364797,4491.8,4491.7,0.001]
[1758390417380,19.07064797,4491.8,4491.7,0.001]
[1758390418813,19.07063013,4491.8,4491.7,0.001]
[1758390420615,15.07866084,4491.8,4491.7,0.2281]
[1758390420830,14.60790577,4491.8,4491.7,0.2281]
[1758390421030,18.30390577,4491.8,4491.7,0.2281]
[1758390422034,14.60790577,4491.8,4491.7,0.2281]
[1758390422242,18.30390577,4491.8,4491.7,0.2281]
[1758390428639,18.30390577,4491.8,4491.7,0.001]
[1758390429316,18.30390577,4491.8,4491.7,0.2346]
[1758390436591,14.40052954,4491.8,4491.7,0.2346]
[1758390436748,9.17425055,4491.8,4491.7,0.2346]
[1758390437088,15.09652954,4491.8,4491.7,0.2346]
[1758390437706,11.40052954,4491.8,4491.7,0.2346]
[1758390437851,15.09652954,4491.8,4491.7,0.2346]
[1758390439584,11.40052954,4491.8,4491.7,0.2346]
[1758390439784,15.09652954,4491.8,4491.7,0.2346]
[1758390440283,11.40052954,4491.8,4491.7,0.2346]
[1758390440582,15.09652954,4491.8,4491.7,0.2346]
[1758390447600,12.87025055,4491.8,4491.7,0.2346]
[1758390448088,12.86925055,4491.8,4491.7,0.2346]
[1758390450101,5.71225055,4491.8,4491.7,0.2346]
[1758390451196,5.71225055,4491.8,4491.7,0.001]
[1758390451197,7.93852954,4491.8,4491.7,0.001]
[1758390451396,8.23449883,4491.8,4491.7,0.001]
[1758390453055,8.36859883,4491.8,4491.7,0.001]
[1758390455603,8.23449883,4491.8,4491.7,0.001]
[1758390455803,8.36859883,4491.8,4491.7,0.001]
[1758390456615,9.42827693,4491.8,4491.7,0.001]
[1758390459452,9.29417693,4491.8,4491.7,0.001]
[1758390460665,9.42827693,4491.8,4491.7,0.001]
[1758390460862,9.29417693,4491.8,4491.7,0.001]
[1758390461063,9.63557483,4491.8,4491.7,0.001]
[1758390461765,16.79257483,4491.8,4491.7,0.001]
[1758390467895,16.65847483,4491.8,4491.7,0.001]
[1758390476417,19.79257483,4491.8,4491.7,0.001]
[1758390477910,20.07099689,4491.8,4491.7,0.001]
[1758390479776,25.01501011,4491.8,4491.7,0.001]
[1758390481184,2.22807243,4492.3,4491.7,0.001]
[1758390481185,0.002,4492.3,4491.7,5.17971322]
[1758390481522,0.002,4492.7,4492.2,4.94401322]
[1758390481722,0.002,4492.7,4492.5,4.94401322]
[1758390482115,0.002,4492.7,4492.3,0.91223283]
[1758390482296,0.002,4492.7,4492.6,0.2347]
[1758390485289,3.731,4492.7,4492.6,0.2347]
[1758390487119,3.75882291,4492.7,4492.6,0.2347]
[1758390487322,5.98465592,4492.7,4492.6,0.2347]
[1758390487636,5.95683301,4492.7,4492.6,0.2347]
[1758390492617,2.22590131,4492.6,4491.8,2.89557734]
[1758390492842,3.75382415,4492.5,4491.9,1.33055906]
[1758390493010,3.75382415,4492.5,4491.9,1.08415906]
[1758390493209,3.75382415,4492.5,4492.0,0.2464]
[1758390494058,2.22598272,4492.4,4492.1,0.2355]
[1758390494335,3.726,4492.3,4492.1,0.2355]
[1758390499371,3.726,4492.3,4491.8,5.61432366]
[1758390499519,3.726,4492.3,4491.8,0.001]
[1758390499520,2.22622943,4491.9,4491.8,0.001]
[1758390499714,5.95122943,4491.9,4491.8,0.001]
[1758390500716,6.15815469,4491.9,4491.8,0.001]
[1758390501269,5.95122943,4491.9,4491.8,0.001]
[1758390501631,6.15813391,4491.9,4491.8,0.001]
[1758390502660,6.15813391,4491.9,4491.8,0.2365]
[1758390503865,6.15813391,4491.9,4491.8,0.001]
[1758390504029,5.95122943,4491.9,4491.8,0.001]
[1758390505319,6.15820753,4491.9,4491.8,0.001]
[1758390508766,6.15835252,4491.9,4491.8,0.001]
[1758390510050,5.95122943,4491.9,4491.8,0.001]
[1758390512160,6.29659737,4491.9,4491.8,0.001]
[1758390513215,7.14887061,4491.9,4491.8,0.001]
[1758390514197,7.01077061,4491.9,4491.8,0.001]
[1758390516127,6.15849737,4491.9,4491.8,0.001]
[1758390516626,6.15843368,4491.9,4491.8,0.001]
[1758390519023,6.15843368,4491.9,4491.8,0.2365]
[1758390519669,2.43343368,4491.9,4491.8,0.2365]
[1758390519873,6.15143368,4491.9,4491.8,0.2365]
[1758390531403,6.15143368,4491.9,4491.8,0.001]
[1758390536421,6.98919158,4491.9,4491.8,0.001]
[1758390536709,7.12729158,4491.9,4491.8,0.001]
[1758390537000,6.98919158,4491.9,4491.8,0.001]
[1758390538510,7.12729158,4491.9,4491.8,0.001]
[1758390538802,14.28429158,4491.9,4491.8,0.001]
[1758390544185,14.14619158,4491.9,4491.8,0.001]
[1758390552097,14.14619158,4491.9,4491.8,0.2292]
[1758390552623,13.30043368,4491.9,4491.8,0.2292]
[1758390554305,13.30043368,4491.9,4491.8,0.001]
[1758390562661,13.43853368,4491.9,4491.8,0.001]
[1758390562950,13.30043368,4491.9,4491.8,0.001]
[1758390569659,13.30043368,4491.9,4491.8,0.2267]
[1758390570368,13.30043368,4491.9,4491.8,0.001]
[1758390585688,13.30043368,4491.9,4491.8,0.2351]
[1758390588111,13.30043368,4491.9,4491.8,0.001]
[1758390594720,13.30043368,4491.9,4491.8,0.2351]
[1758390595718,15.22643368,4491.9,4491.8,0.2351]
[1758390596219,15.21743368,4491.9,4491.8,0.2351]
[1758390601426,15.21743368,4491.9,4491.8,0.001]
[1758390601792,15.21743368,4491.9,4491.8,0.2351]
[1758390602428,15.21773713,4491.9,4491.8,0.2351]
[1758390613350,15.21773713,4491.9,4491.8,0.001]
[1758390614855,15.21773416,4491.9,4491.8,0.001]
[1758390615150,15.21773416,4491.9,4491.8,0.2404]
[1758390618745,15.21773416,4491.9,4491.8,0.001]
[1758390619252,15.01022943,4491.9,4491.8,0.001]
[1758390619423,15.21774063,4491.9,4491.8,0.001]
[1758390624504,13.29174063,4491.9,4491.8,0.001]
[1758390635797,13.42984063,4491.9,4491.8,0.001]
[1758390637382,13.29181584,4491.9,4491.8,0.001]
[1758390640823,7.36458641,4491.9,4491.8,0.001]
[1758390640986,10.857,4491.9,4491.8,0.2404]
[1758390642081,1.926,4492.3,4491.8,0.2404]
[1758390642377,3.7,4492.2,4491.9,5.4585809]
[1758390642917,3.7,4492.2,4492.0,0.2394]
[1758390643932,3.7,4492.2,4492.1,0.005779]
[1758390644138,1.926,4492.3,4492.1,0.243579]
[1758390644339,0.002,4492.6,4492.2,7.16639067]
[1758390644632,0.002,4492.6,4492.5,4.94030991]
[1758390644949,3.702,4492.6,4492.5,4.94030991]
[1758390645243,3.702,4492.6,4492.5,5.17810991]
[1758390647344,3.702,4492.6,4492.5,0.2378]
[1758390654642,5.92788256,4492.6,4492.5,0.2378]
[1758390654812,3.702,4492.6,4492.5,0.2378]
[1758390655407,5.92788256,4492.6,4492.5,0.2378]
[1758390656747,5.92788256,4492.6,4492.1,0.66928058]
[1758390656911,5.92788256,4492.6,4492.2,0.2378]
[1758390657113,5.92788256,4492.6,4492.3,0.2378]
[1758390657310,3.702,4492.6,4492.1,0.66928058]
[1758390657631,2.22598165,4492.4,4491.8,0.2388]
[1758390657836,3.7,4492.3,4491.8,0.2388]
[1758390658369,3.7,4492.3,4491.9,0.2378]
[1758390658370,2.22608884,4492.2,4491.9,0.2378]
[1758390658578,3.7,4492.1,4491.8,0.001]
[1758390658951,3.7,4492.1,4491.8,0.2388]
[1758390659153,3.7,4492.1,4491.8,0.001]
[1758390659352,3.7,4492.1,4491.9,0.2378]
[1758390662844,3.7,4492.1,4491.8,0.001]
[1758390663071,3.7,4492.1,4491.9,0.2488]
[1758390663378,3.7,4492.1,4492.0,0.2488]
[1758390666578,3.7,4492.1,4491.8,0.001]
[1758390666757,3.7,4492.1,4491.8,0.2498]
[1758390666957,3.7,4492.1,4491.8,0.001]
[1758390667359,2.22622943,4491.9,4491.8,0.001]
[1758390667547,3.8381,4492.1,4491.8,0.001]
[1758390667747,0.2498,4492.0,4491.8,0.001]
[1758390668249,2.47601473,4492.0,4491.8,0.001]
[1758390668642,3.7,4492.1,4491.8,0.001]
[1758390668847,0.08925015,4492.0,4491.8,0.001]
[1758390669466,3.699,4491.9,4491.8,0.001]
[1758390670230,0.08925015,4492.0,4491.8,0.24939953]
[1758390670489,7.159,4493.0,4491.8,0.24939953]
[1758390670490,3.699,4492.3,4491.9,2.23201091]
[1758390670776,2.329,4492.5,4492.0,0.2488]
[1758390671083,2.329,4492.5,4492.1,0.00577733]
[1758390671486,2.329,4492.5,4492.2,0.2488]
[1758390671651,2.329,4492.5,4492.3,0.25457597]
[1758390674486,2.22598165,4492.4,4491.9,0.66928058]
[1758390674698,2.329,4492.5,4491.8,0.001]
[1758390674699,4.69304086,4492.5,4491.8,0.001]
[1758390674997,2.22606947,4492.3,4491.8,0.001]
[1758390675151,3.699,4492.2,4491.8,0.001]
[1758390675356,5.92509492,4492.2,4491.8,0.001]
[1758390675587,5.92509492,4492.2,4491.8,0.2312]
[1758390676883,2.22614153,4492.1,4491.8,0.001]
[1758390678091,0.02782662,4492.1,4491.8,0.001]
[1758390678395,0.73061415,4492.0,4491.8,0.001]
[1758390678566,2.22622943,4491.9,4491.8,0.001]
[1758390678771,2.17622943,4491.9,4491.8,0.001]
[1758390679293,3.7,4491.9,4491.8,0.001]
[1758390679655,5.92622943,4491.9,4491.8,0.001]
[1758390680695,6.06432943,4491.9,4491.8,0.001]
[1758390681361,5.92622943,4491.9,4491.8,0.001]
[1758390684404,7.1098827,4491.9,4491.8,0.001]
[1758390684628,6.90230206,4491.9,4491.8,0.001]
[1758390684905,6.76420206,4491.9,4491.8,0.001]
[1758390686516,3.7,4491.9,4491.8,0.001]
[1758390686815,3.7,4491.9,4491.8,0.2312]
[1758390695125,3.7,4491.9,4491.8,0.001]
[1758390695321,3.7,4491.9,4491.8,0.2312]
[1758390697735,3.7,4491.9,4491.8,0.001]
[1758390699499,5.92622943,4491.9,4491.8,0.001]
[1758390699703,3.7,4491.9,4491.8,0.001]
[1758390701537,5.92622943,4491.9,4491.8,0.001]
[1758390709921,6.27194245,4491.9,4491.8,0.001]
[1758390712939,6.13384245,4491.9,4491.8,0.001]
[1758390713478,6.27394245,4491.9,4491.8,0.001]
[1758390714142,5.92822943,4491.9,4491.8,0.001]
[1758390715763,2.22822943,4491.9,4491.8,0.001]
[1758390716341,5.92822943,4491.9,4491.8,0.001]
[1758390719252,0.002,4491.9,4491.8,0.001]
[1758390719459,3.702,4491.9,4491.8,0.2289]
[1758390720256,3.702,4491.9,4491.8,0.001]
[1758390720964,3.702,4491.9,4491.8,0.2289]
[1758390721162,5.92822943,4491.9,4491.8,0.2289]
[1758390721354,5.92822943,4491.9,4491.8,0.001]
[1758390722581,3.702,4491.9,4491.8,0.001]
[1758390723808,3.702,4491.9,4491.8,0.2345]
[1758390723964,0.002,4491.9,4491.8,0.86992699]
[1758390724169,3.702,4491.9,4491.8,3.09620598]
[1758390725278,0.002,4491.9,4491.8,3.09620598]
[1758390725478,0.002,4491.9,4491.8,3.88820598]
[1758390725990,0.002,4491.9,4491.8,11.82603731]
[1758390731990,0.002,4491.9,4491.8,11.59253731]
[1758390732297,0.002,4491.9,4491.8,11.82603731]
[1758390733628,0.002,4491.9,4491.8,3.63642699]
[1758390737003,0.002,4491.9,4491.8,3.87212699]
[1758390737254,0.002,4491.9,4491.8,6.10418814]
[1758390737384,0.002,4491.9,4491.8,6.09840598]
[1758390740596,0.002,4491.9,4491.8,3.87212699]
[1758390740830,0.002,4491.9,4491.8,3.87790915]
[1758390741125,0.002,4491.9,4491.8,6.10418814]
[1758390741333,0.002,4491.9,4491.8,6.09840598]
[1758390749965,0.002,4491.9,4491.8,6.89040598]
[1758390760607,0.002,4492.4,4492.3,2.2260312]
[1758390760806,0.002,4492.4,4492.3,11.3080754]
[1758390761088,0.002,4492.4,4492.3,14.5437754]
[1758390761884,0.002,4492.4,4492.3,14.3080754]
[1758390764791,0.002,4493.2,4492.9,6.01773393]
[1758390764995,0.002,4493.2,4492.9,15.56912195]
[1758390765169,0.002,4493.2,4492.9,15.81862195]
[1758390766275,0.002,4493.2,4492.9,15.90782275]
[1758390780439,0.002,4493.2,4492.9,15.65332275]
[1758390780736,0.002,4493.2,4492.9,15.90282275]
[1758390782718,0.002,4493.2,4493.0,6.01768439]
[1758390782923,0.002,4493.2,4493.0,8.46586083]
[1758390783444,0.002,4493.2,4493.0,8.55505665]
[1758390785911,0.002,4493.2,4493.0,14.66063443]
[1758390788918,0.002,4493.2,4493.0,14.41173443]
[1758390791562,0.002,4493.2,4493.0,12.00915665]
[1758390791754,0.002,4493.2,4493.0,18.11473443]
[1758390793950,0.002,4493.2,4493.0,18.36393443]
[1758390795244,0.002,4493.5,4493.2,0.792]
[1758390795451,0.012,4493.9,4493.6,2.22538721]
[1758390795651,0.012,4493.9,4493.8,12.12286595]
[1758390796396,0.012,4493.9,4493.8,12.57099752]
[1758390798248,0.012,4493.9,4493.8,12.82019752]